[Event "Live Chess"]
[Site "Chess.com"]
[Date "2024.06.02"]
[Round "-"]
[White "Duke_of_Bebington"]
[Black "booktrunk"]
[Result "0-1"]
[WhiteElo "1624"]
[BlackElo "1485"]
[TimeControl "300"]
[EndTime "17:22:32 PDT"]
[Termination "booktrunk won by resignation"]

1. e4 {[%clk 0:04:57.7]} 1... b6 {[%clk 0:04:56.8]} 2. g3 {[%clk 0:04:52.2]}
2... Bb7 {[%clk 0:04:54.4]} 3. Bg2 {[%clk 0:04:51.6]} 3... e6 {[%clk 0:04:47.5]}
4. Ne2 {[%clk 0:04:50.7]} 4... h6 {[%clk 0:04:25.9]} 5. d4 {[%clk 0:04:47.7]}
5... d6 {[%clk 0:04:15.8]} 6. Be3 {[%clk 0:04:46.8]} 6... Ne7 {[%clk 0:04:10.2]}
7. O-O {[%clk 0:04:46.2]} 7... Nd7 {[%clk 0:04:01.3]} 8. c4 {[%clk 0:04:40.3]}
8... g6 {[%clk 0:03:54.8]} 9. Nbc3 {[%clk 0:04:38.4]} 9... Bg7 {[%clk 0:03:54]}
10. Qd2 {[%clk 0:04:37.1]} 10... e5 {[%clk 0:03:50.4]} 11. d5 {[%clk 0:04:35.2]}
11... Nf6 {[%clk 0:03:44.9]} 12. Rac1 {[%clk 0:04:26.6]} 12... O-O {[%clk
0:03:41.3]} 13. f4 {[%clk 0:04:25.1]} 13... a5 {[%clk 0:03:31.5]} 14. fxe5
{[%clk 0:04:23]} 14... dxe5 {[%clk 0:03:29.1]} 15. a3 {[%clk 0:04:11.5]} 15...
Kh7 {[%clk 0:03:26.6]} 16. Kh1 {[%clk 0:03:59.8]} 16... c6 {[%clk 0:03:25.3]}
17. Ng1 {[%clk 0:03:56.3]} 17... cxd5 {[%clk 0:03:23.2]} 18. cxd5 {[%clk
0:03:54.8]} 18... Qd6 {[%clk 0:03:19.7]} 19. Nb5 {[%clk 0:03:51.7]} 19... Qd7
{[%clk 0:03:15.7]} 20. a4 {[%clk 0:03:49.8]} 20... Rac8 {[%clk 0:03:11.5]} 21.
Bxb6 {[%clk 0:03:42.1]} 21... Rxc1 {[%clk 0:03:08.9]} 22. Rxc1 {[%clk
0:03:40.8]} 22... Rc8 {[%clk 0:03:07.1]} 23. Rxc8 {[%clk 0:03:35.7]} 23... Qxc8
{[%clk 0:03:03.4]} 24. Bxa5 {[%clk 0:03:34.6]} 24... Qc5 {[%clk 0:02:53.6]} 25.
Bc3 {[%clk 0:03:29.7]} 25... Ba6 {[%clk 0:02:50.6]} 26. b3 {[%clk 0:03:21.7]}
26... Bxb5 {[%clk 0:02:43.1]} 27. axb5 {[%clk 0:03:19.3]} 27... Qxb5 {[%clk
0:02:41.8]} 28. Ne2 {[%clk 0:03:17]} 28... Ng4 {[%clk 0:02:39.6]} 29. Nc1 {[%clk
0:03:11.9]} 29... Qb6 {[%clk 0:02:29.4]} 30. d6 {[%clk 0:02:59.5]} 30... Nf2+
{[%clk 0:02:21.6]} 31. Kg1 {[%clk 0:02:54.4]} 31... Nxe4+ {[%clk 0:02:20.3]} 32.
Kf1 {[%clk 0:02:53.6]} 32... Nxd2+ {[%clk 0:02:17.7]} 33. Bxd2 {[%clk
0:02:53.5]} 33... Qxd6 {[%clk 0:02:15.8]} 34. Ke1 {[%clk 0:02:46.6]} 34... Nd5
{[%clk 0:02:13.3]} 35. Ne2 {[%clk 0:02:45.4]} 35... Bf8 {[%clk 0:02:07.7]} 36.
b4 {[%clk 0:02:43.9]} 36... Nc7 {[%clk 0:02:00.4]} 37. Nc3 {[%clk 0:02:40.3]}
37... Qd3 {[%clk 0:01:57.5]} 38. Be4 {[%clk 0:02:35.4]} 38... Qd4 {[%clk
0:01:52.2]} 39. Bd5 {[%clk 0:02:27.5]} 39... Nxd5 {[%clk 0:01:47.7]} 0-1

[Event "Live Chess"]
[Site "Chess.com"]
[Date "2024.06.02"]
[Round "-"]
[White "dmitro74"]
[Black "LanceMaster23"]
[Result "0-1"]
[WhiteElo "1703"]
[BlackElo "1838"]
[TimeControl "300"]
[EndTime "17:22:52 PDT"]
[Termination "LanceMaster23 won on time"]

1. d4 {[%clk 0:04:57.6]} 1... Nf6 {[%clk 0:04:58.6]} 2. c4 {[%clk 0:04:56.1]}
2... e6 {[%clk 0:04:57.1]} 3. Nf3 {[%clk 0:04:54.3]} 3... Bb4+ {[%clk
0:04:56.1]} 4. Bd2 {[%clk 0:04:52.7]} 4... Bxd2+ {[%clk 0:04:55]} 5. Nbxd2
{[%clk 0:04:52.2]} 5... c5 {[%clk 0:04:54.6]} 6. e3 {[%clk 0:04:47.9]} 6... cxd4
{[%clk 0:04:53.2]} 7. exd4 {[%clk 0:04:46.8]} 7... O-O {[%clk 0:04:51.9]} 8. Bd3
{[%clk 0:04:45.3]} 8... d5 {[%clk 0:04:50.4]} 9. c5 {[%clk 0:04:42.9]} 9... b6
{[%clk 0:04:47.3]} 10. b4 {[%clk 0:04:38.4]} 10... a5 {[%clk 0:04:46]} 11. a3
{[%clk 0:04:34]} 11... axb4 {[%clk 0:04:45.6]} 12. axb4 {[%clk 0:04:32.9]} 12...
Rxa1 {[%clk 0:04:45.3]} 13. Qxa1 {[%clk 0:04:31.7]} 13... bxc5 {[%clk 0:04:45]}
14. bxc5 {[%clk 0:04:29.8]} 14... Re8 {[%clk 0:04:33.1]} 15. O-O {[%clk
0:04:27.9]} 15... Nc6 {[%clk 0:04:31.6]} 16. Re1 {[%clk 0:04:22.8]} 16... Qc7
{[%clk 0:04:27.6]} 17. Ne5 {[%clk 0:04:14.4]} 17... Nd7 {[%clk 0:04:14.2]} 18.
Ndf3 {[%clk 0:04:01.7]} 18... f6 {[%clk 0:04:05.3]} 19. Nxc6 {[%clk 0:03:52]}
19... Qxc6 {[%clk 0:04:04.4]} 20. Rb1 {[%clk 0:03:51]} 20... e5 {[%clk
0:03:57.9]} 21. Bb5 {[%clk 0:03:49.3]} 21... Qc7 {[%clk 0:03:41.2]} 22. c6
{[%clk 0:03:41.8]} 22... Nf8 {[%clk 0:03:14.2]} 23. dxe5 {[%clk 0:03:23.5]}
23... fxe5 {[%clk 0:03:14.1]} 24. Qa2 {[%clk 0:03:18.7]} 24... Be6 {[%clk
0:03:08.5]} 25. Ng5 {[%clk 0:03:15.7]} 25... Qd6 {[%clk 0:02:28.5]} 26. c7
{[%clk 0:02:46.2]} 26... Rc8 {[%clk 0:02:27.7]} 27. Nxe6 {[%clk 0:02:37.5]}
27... Nxe6 {[%clk 0:02:25.8]} 28. Rc1 {[%clk 0:02:25.9]} 28... Rxc7 {[%clk
0:02:18.1]} 29. Qa8+ {[%clk 0:02:22.6]} 29... Kf7 {[%clk 0:02:10.5]} 30. Qe8+
{[%clk 0:02:17.6]} 30... Kf6 {[%clk 0:02:06.8]} 31. Rxc7 {[%clk 0:01:50.9]}
31... Qxc7 {[%clk 0:02:01.9]} 32. g3 {[%clk 0:01:47.8]} 32... d4 {[%clk
0:01:50]} 33. Bd7 {[%clk 0:01:38.3]} 33... Qd6 {[%clk 0:01:34.9]} 34. g4 {[%clk
0:00:52.5]} 34... e4 {[%clk 0:01:21.4]} 35. h4 {[%clk 0:00:47.8]} 35... h6
{[%clk 0:00:51.2]} 36. g5+ {[%clk 0:00:44.4]} 36... hxg5 {[%clk 0:00:48.6]} 37.
hxg5+ {[%clk 0:00:39.2]} 37... Nxg5 {[%clk 0:00:45.4]} 38. Qd8+ {[%clk
0:00:32.7]} 38... Qe7 {[%clk 0:00:35.7]} 39. Qb6+ {[%clk 0:00:24.5]} 39... Ne6
{[%clk 0:00:35.3]} 40. Bxe6 {[%clk 0:00:20.3]} 40... Qxe6 {[%clk 0:00:28.2]} 41.
Qxd4+ {[%clk 0:00:19.7]} 41... Qe5 {[%clk 0:00:23.9]} 42. Qd8+ {[%clk
0:00:18.1]} 42... Kf5 {[%clk 0:00:22.5]} 43. Qf8+ {[%clk 0:00:15.9]} 43... Qf6
{[%clk 0:00:21.1]} 44. Qc5+ {[%clk 0:00:14.3]} 44... Kf4 {[%clk 0:00:20]} 45.
Qe3+ {[%clk 0:00:12.2]} 45... Kg4 {[%clk 0:00:18.3]} 46. Qg3+ {[%clk 0:00:10.5]}
46... Kh5 {[%clk 0:00:17.8]} 47. Qh3+ {[%clk 0:00:07.4]} 47... Qh4 {[%clk
0:00:17.4]} 48. Qf5+ {[%clk 0:00:04.3]} 48... Qg5+ {[%clk 0:00:16.8]} 49. Qxg5+
{[%clk 0:00:03.5]} 49... Kxg5 {[%clk 0:00:16.7]} 50. Kg2 {[%clk 0:00:01.9]}
50... Kf4 {[%clk 0:00:16.3]} 0-1

[Event "Live Chess"]
[Site "Chess.com"]
[Date "2024.06.02"]
[Round "-"]
[White "alicechristina"]
[Black "ShanthamGrarks"]
[Result "1-0"]
[WhiteElo "1951"]
[BlackElo "1844"]
[TimeControl "300"]
[EndTime "17:22:57 PDT"]
[Termination "alicechristina won by checkmate"]

1. c4 {[%clk 0:04:55.6]} 1... c6 {[%clk 0:04:55.2]} 2. e4 {[%clk 0:04:52]} 2...
e5 {[%clk 0:04:49.8]} 3. d4 {[%clk 0:04:44.2]} 3... exd4 {[%clk 0:04:47.9]} 4.
Qxd4 {[%clk 0:04:42.5]} 4... Nf6 {[%clk 0:04:45.5]} 5. Nc3 {[%clk 0:04:40.9]}
5... Na6 {[%clk 0:04:42.4]} 6. Nf3 {[%clk 0:04:36.5]} 6... Bc5 {[%clk
0:04:39.9]} 7. Qd1 {[%clk 0:04:35.2]} 7... O-O {[%clk 0:04:35.3]} 8. Bd3 {[%clk
0:04:34.2]} 8... Re8 {[%clk 0:04:33.9]} 9. O-O {[%clk 0:04:32.3]} 9... Nb4
{[%clk 0:04:31.8]} 10. Bb1 {[%clk 0:04:29.9]} 10... d6 {[%clk 0:04:27.7]} 11. a3
{[%clk 0:04:28.6]} 11... Na6 {[%clk 0:04:26.6]} 12. Qc2 {[%clk 0:04:25.9]} 12...
g6 {[%clk 0:04:23.6]} 13. Bg5 {[%clk 0:04:23.5]} 13... Bg4 {[%clk 0:04:13.1]}
14. b4 {[%clk 0:04:19.9]} 14... Bxf3 {[%clk 0:04:06.5]} 15. bxc5 {[%clk
0:04:17.9]} 15... Bg4 {[%clk 0:03:55.5]} 16. cxd6 {[%clk 0:04:16.9]} 16... Qxd6
{[%clk 0:03:53.6]} 17. h3 {[%clk 0:04:07]} 17... Bd7 {[%clk 0:03:34.7]} 18. Rd1
{[%clk 0:04:04.5]} 18... Qe5 {[%clk 0:03:20.1]} 19. Bxf6 {[%clk 0:04:03]} 19...
Qxf6 {[%clk 0:03:18.9]} 20. Rxd7 {[%clk 0:04:01.3]} 20... Nc5 {[%clk 0:03:18.5]}
21. Rd1 {[%clk 0:03:58.3]} 21... Nxe4 {[%clk 0:03:14]} 22. Nxe4 {[%clk
0:03:56.7]} 22... Qxa1 {[%clk 0:03:12.5]} 23. Nd6 {[%clk 0:03:47.3]} 23... Re7
{[%clk 0:03:03.2]} 24. c5 {[%clk 0:03:45.1]} 24... Qxa3 {[%clk 0:02:58.4]} 25.
Ba2 {[%clk 0:03:39.7]} 25... Rd8 {[%clk 0:02:47.6]} 26. Ra1 {[%clk 0:03:02.9]}
26... Qb4 {[%clk 0:02:40.8]} 27. Rb1 {[%clk 0:02:53.5]} 27... Qd4 {[%clk
0:02:39.2]} 28. Qb3 {[%clk 0:02:47.8]} 28... Rxd6 {[%clk 0:01:54.9]} 29. cxd6
{[%clk 0:02:44.3]} 29... Qxd6 {[%clk 0:01:54.4]} 30. Rd1 {[%clk 0:02:39.3]}
30... Qe5 {[%clk 0:01:52.5]} 31. Qf3 {[%clk 0:02:10]} 31... Kg7 {[%clk
0:01:43.8]} 32. Qe3 {[%clk 0:01:56.2]} 32... Qxe3 {[%clk 0:01:39.3]} 33. fxe3
{[%clk 0:01:55.1]} 33... Rxe3 {[%clk 0:01:38.4]} 34. Rd7 {[%clk 0:01:53.8]}
34... Re1+ {[%clk 0:01:29.2]} 35. Kf2 {[%clk 0:01:52.2]} 35... Re5 {[%clk
0:01:27.1]} 36. Rxf7+ {[%clk 0:01:49.7]} 36... Kh6 {[%clk 0:01:25.1]} 37. Rxb7
{[%clk 0:01:48.6]} 37... a5 {[%clk 0:01:20.8]} 38. Bg8 {[%clk 0:01:46.1]} 38...
Kg5 {[%clk 0:01:08.4]} 39. Rxh7 {[%clk 0:01:42.5]} 39... a4 {[%clk 0:01:07.9]}
40. Ra7 {[%clk 0:01:41.2]} 40... Re4 {[%clk 0:01:04.2]} 41. Ra5+ {[%clk
0:01:38.9]} 41... Kf6 {[%clk 0:01:01.3]} 42. Ra6 {[%clk 0:01:33.3]} 42... Rf4+
{[%clk 0:00:51.2]} 43. Kg3 {[%clk 0:01:31.4]} 43... Rb4 {[%clk 0:00:43.6]} 44.
Rxc6+ {[%clk 0:01:29.4]} 44... Kg7 {[%clk 0:00:43.3]} 45. Bd5 {[%clk 0:01:24.6]}
45... a3 {[%clk 0:00:41.3]} 46. Ra6 {[%clk 0:01:19.1]} 46... Rd4 {[%clk
0:00:37.3]} 47. Ba2 {[%clk 0:01:07.9]} 47... Rd3+ {[%clk 0:00:36.1]} 48. Kh2
{[%clk 0:01:07]} 48... Kh6 {[%clk 0:00:33.8]} 49. Bb1 {[%clk 0:01:04.6]} 49...
Rb3 {[%clk 0:00:27.7]} 50. Bxg6 {[%clk 0:00:41.9]} 50... Kg5 {[%clk 0:00:26.8]}
51. Bf7 {[%clk 0:00:38.5]} 51... Rc3 {[%clk 0:00:23.9]} 52. Ra5+ {[%clk
0:00:34.5]} 52... Kf4 {[%clk 0:00:22.6]} 53. h4 {[%clk 0:00:32.7]} 53... Ke3
{[%clk 0:00:22.2]} 54. h5 {[%clk 0:00:31.6]} 54... Kf2 {[%clk 0:00:21.8]} 55. h6
{[%clk 0:00:25.8]} 55... Rc6 {[%clk 0:00:18.6]} 56. h7 {[%clk 0:00:19.1]} 56...
Rh6+ {[%clk 0:00:17.3]} 57. Rh5 {[%clk 0:00:13.6]} 57... Rxh5+ {[%clk
0:00:14.4]} 58. Bxh5 {[%clk 0:00:12.2]} 58... a2 {[%clk 0:00:14.3]} 59. h8=Q
{[%clk 0:00:11.4]} 59... a1=N {[%clk 0:00:11.5]} 60. Qxa1 {[%clk 0:00:10.7]}
60... Ke3 {[%clk 0:00:10.6]} 61. Qf6 {[%clk 0:00:10.1]} 61... Kd3 {[%clk
0:00:07.6]} 62. Qe5 {[%clk 0:00:09.4]} 62... Kc4 {[%clk 0:00:07.3]} 63. Qd6
{[%clk 0:00:08.7]} 63... Kb5 {[%clk 0:00:05.4]} 64. Qc7 {[%clk 0:00:08]} 64...
Kb4 {[%clk 0:00:03.6]} 65. Qc6 {[%clk 0:00:07.2]} 65... Ka5 {[%clk 0:00:02.9]}
66. Qb7 {[%clk 0:00:06.3]} 66... Ka4 {[%clk 0:00:02]} 67. Bd1+ {[%clk
0:00:05.1]} 67... Ka3 {[%clk 0:00:01.9]} 68. Qb3# {[%clk 0:00:03.9]} 1-0

[Event "Live Chess"]
[Site "Chess.com"]
[Date "2024.06.02"]
[Round "-"]
[White "Tushinskiy"]
[Black "Crowded_House"]
[Result "1-0"]
[WhiteElo "2233"]
[BlackElo "1726"]
[TimeControl "300"]
[EndTime "17:23:14 PDT"]
[Termination "Tushinskiy won by checkmate"]

1. d4 {[%clk 0:04:54.9]} 1... e6 {[%clk 0:04:57.4]} 2. c3 {[%clk 0:04:54.8]}
2... d5 {[%clk 0:04:55.5]} 3. Nf3 {[%clk 0:04:54.7]} 3... Bd6 {[%clk 0:04:51.7]}
4. Bg5 {[%clk 0:04:40]} 4... Be7 {[%clk 0:04:49.2]} 5. Bf4 {[%clk 0:04:32.8]}
5... Bd6 {[%clk 0:04:45.6]} 6. Bg3 {[%clk 0:04:27.7]} 6... Nf6 {[%clk
0:04:44.2]} 7. Nbd2 {[%clk 0:04:25.5]} 7... c6 {[%clk 0:04:43.2]} 8. Qc2 {[%clk
0:04:22.9]} 8... Qc7 {[%clk 0:04:42.2]} 9. e4 {[%clk 0:04:19.2]} 9... dxe4
{[%clk 0:04:40.4]} 10. Nxe4 {[%clk 0:04:19.1]} 10... Nxe4 {[%clk 0:04:36.3]} 11.
Qxe4 {[%clk 0:04:19]} 11... Nd7 {[%clk 0:04:33.1]} 12. Bd3 {[%clk 0:04:17.9]}
12... Nf6 {[%clk 0:04:31.4]} 13. Qe2 {[%clk 0:04:16.9]} 13... b6 {[%clk
0:04:25.9]} 14. O-O {[%clk 0:04:12.1]} 14... O-O {[%clk 0:04:22.7]} 15. Ne5
{[%clk 0:04:09.6]} 15... Bb7 {[%clk 0:04:11.1]} 16. f4 {[%clk 0:04:07]} 16...
Nd7 {[%clk 0:04:06.5]} 17. Rae1 {[%clk 0:04:00.6]} 17... Nxe5 {[%clk 0:03:58.3]}
18. fxe5 {[%clk 0:03:58.5]} 18... Be7 {[%clk 0:03:53.8]} 19. Qg4 {[%clk
0:03:53.5]} 19... c5 {[%clk 0:03:40.8]} 20. Bf4 {[%clk 0:03:51.3]} 20... Kh8
{[%clk 0:03:28]} 21. Re3 {[%clk 0:03:45.7]} 21... cxd4 {[%clk 0:03:23.1]} 22.
Rh3 {[%clk 0:03:43.5]} 22... g6 {[%clk 0:03:06.6]} 23. Bh6 {[%clk 0:03:41.1]}
23... Rg8 {[%clk 0:03:04.6]} 24. Rxf7 {[%clk 0:03:36.4]} 24... Rae8 {[%clk
0:02:49.9]} 25. Rxh7+ {[%clk 0:03:30.9]} 25... Kxh7 {[%clk 0:02:41.7]} 26. Bf8+
{[%clk 0:03:30.8]} 26... Bh4 {[%clk 0:02:32.2]} 27. Rxh4# {[%clk 0:03:30.7]} 1-0

[Event "Live Chess"]
[Site "Chess.com"]
[Date "2024.06.02"]
[Round "-"]
[White "educatedlad"]
[Black "ACM42"]
[Result "0-1"]
[WhiteElo "1746"]
[BlackElo "2159"]
[TimeControl "300"]
[EndTime "17:23:56 PDT"]
[Termination "ACM42 won by checkmate"]

1. d4 {[%clk 0:04:59.1]} 1... Nf6 {[%clk 0:04:56.6]} 2. Bg5 {[%clk 0:04:57.9]}
2... Ne4 {[%clk 0:04:44.5]} 3. Bf4 {[%clk 0:04:56.3]} 3... d5 {[%clk 0:04:43.7]}
4. e3 {[%clk 0:04:54.6]} 4... g6 {[%clk 0:04:42.5]} 5. f3 {[%clk 0:04:52.7]}
5... Nd6 {[%clk 0:04:41.3]} 6. Nc3 {[%clk 0:04:51.4]} 6... c6 {[%clk 0:04:39.6]}
7. Qd2 {[%clk 0:04:49.9]} 7... Bg7 {[%clk 0:04:38.7]} 8. O-O-O {[%clk
0:04:47.4]} 8... Nd7 {[%clk 0:04:35.9]} 9. Bxd6 {[%clk 0:04:45.4]} 9... exd6
{[%clk 0:04:34.7]} 10. Nge2 {[%clk 0:04:42.5]} 10... O-O {[%clk 0:04:33.3]} 11.
Ng3 {[%clk 0:04:34.6]} 11... Nf6 {[%clk 0:04:29.8]} 12. Bd3 {[%clk 0:04:32.2]}
12... b5 {[%clk 0:04:27.5]} 13. h4 {[%clk 0:04:25.1]} 13... h5 {[%clk
0:04:24.4]} 14. e4 {[%clk 0:04:18.7]} 14... b4 {[%clk 0:04:22.6]} 15. Nb1 {[%clk
0:04:14.4]} 15... a5 {[%clk 0:04:19.5]} 16. e5 {[%clk 0:04:02.3]} 16... dxe5
{[%clk 0:04:02.2]} 17. dxe5 {[%clk 0:04:02.2]} 17... Nd7 {[%clk 0:04:01.2]} 18.
f4 {[%clk 0:03:57.1]} 18... Nc5 {[%clk 0:04:00.3]} 19. Qf2 {[%clk 0:03:36.7]}
19... Bg4 {[%clk 0:03:56]} 20. Rd2 {[%clk 0:03:32.8]} 20... Na4 {[%clk
0:03:35.4]} 21. b3 {[%clk 0:03:23]} 21... Nc3 {[%clk 0:03:31.6]} 22. Nxc3 {[%clk
0:03:21.2]} 22... bxc3 {[%clk 0:03:30.6]} 23. Re2 {[%clk 0:03:19.4]} 23... Bxe2
{[%clk 0:03:23]} 24. Qxe2 {[%clk 0:03:19.3]} 24... f5 {[%clk 0:03:22.1]} 25. Qe1
{[%clk 0:03:10.8]} 25... d4 {[%clk 0:03:15.6]} 26. Bc4+ {[%clk 0:03:07.1]} 26...
Kh7 {[%clk 0:03:08.8]} 27. Qe2 {[%clk 0:03:03.3]} 27... Qe7 {[%clk 0:02:53.7]}
28. Nxh5 {[%clk 0:02:51.1]} 28... Qa3+ {[%clk 0:02:40.8]} 29. Kd1 {[%clk
0:02:49.1]} 29... Qxa2 {[%clk 0:02:39.6]} 30. Nxg7 {[%clk 0:02:40.2]} 30... Qb1#
{[%clk 0:02:37.7]} 0-1

[Event "Live Chess"]
[Site "Chess.com"]
[Date "2024.06.02"]
[Round "-"]
[White "MagnersCarlsberg2870"]
[Black "CarmelJane"]
[Result "0-1"]
[WhiteElo "1772"]
[BlackElo "2076"]
[TimeControl "300"]
[EndTime "17:23:58 PDT"]
[Termination "CarmelJane won by resignation"]

1. d4 {[%clk 0:04:56]} 1... Nf6 {[%clk 0:04:58.5]} 2. Nf3 {[%clk 0:04:54.3]}
2... e6 {[%clk 0:04:57.2]} 3. e3 {[%clk 0:04:53.4]} 3... c5 {[%clk 0:04:55.8]}
4. Bd3 {[%clk 0:04:50.9]} 4... cxd4 {[%clk 0:04:55.7]} 5. exd4 {[%clk
0:04:49.8]} 5... b6 {[%clk 0:04:53.8]} 6. Nbd2 {[%clk 0:04:47.2]} 6... Bb7
{[%clk 0:04:52.5]} 7. c3 {[%clk 0:04:46.5]} 7... Be7 {[%clk 0:04:48.7]} 8. Qe2
{[%clk 0:04:44.1]} 8... O-O {[%clk 0:04:46.7]} 9. O-O {[%clk 0:04:41.2]} 9...
Nc6 {[%clk 0:04:45.9]} 10. Ne4 {[%clk 0:04:40]} 10... Rc8 {[%clk 0:04:41.5]} 11.
Bg5 {[%clk 0:04:36.3]} 11... h6 {[%clk 0:04:40.2]} 12. Bxf6 {[%clk 0:04:34.7]}
12... Bxf6 {[%clk 0:04:40.1]} 13. Nxf6+ {[%clk 0:04:33.9]} 13... gxf6 {[%clk
0:04:39.2]} 14. Qe4 {[%clk 0:04:31.2]} 14... f5 {[%clk 0:04:38.5]} 15. Qe3
{[%clk 0:04:29.4]} 15... Qf6 {[%clk 0:04:36.9]} 16. Ne5 {[%clk 0:04:23]} 16...
Nxe5 {[%clk 0:04:35.3]} 17. dxe5 {[%clk 0:04:21.8]} 17... Qg6 {[%clk 0:04:33.7]}
18. Qh3 {[%clk 0:04:02.2]} 18... Kh7 {[%clk 0:04:31.5]} 19. Be2 {[%clk
0:03:54.3]} 19... Rg8 {[%clk 0:04:29.6]} 20. Bf3 {[%clk 0:03:50.4]} 20... Bxf3
{[%clk 0:04:27.5]} 21. Qxf3 {[%clk 0:03:47.6]} 21... Rc4 {[%clk 0:04:27]} 22. g3
{[%clk 0:03:40.6]} 22... f4 {[%clk 0:04:19.2]} 23. Rad1 {[%clk 0:03:36.5]} 23...
fxg3 {[%clk 0:04:18]} 24. fxg3 {[%clk 0:03:32.9]} 24... Rc7 {[%clk 0:03:38.1]}
25. Qxf7+ {[%clk 0:03:29]} 25... Rg7 {[%clk 0:03:36.9]} 26. Qxg6+ {[%clk
0:03:12]} 26... Kxg6 {[%clk 0:03:36.8]} 27. Rf6+ {[%clk 0:03:09.5]} 27... Kg5
{[%clk 0:03:23.8]} 28. h4+ {[%clk 0:03:02.6]} 28... Kh5 {[%clk 0:03:22.9]} 29.
Kh2 {[%clk 0:02:49.5]} 29... Rc5 {[%clk 0:03:21]} 30. Re1 {[%clk 0:02:47]} 30...
Rg6 {[%clk 0:03:15.6]} 31. Re4 {[%clk 0:02:42.5]} 31... Rxf6 {[%clk 0:03:13.7]}
32. exf6 {[%clk 0:02:39.8]} 32... Kg6 {[%clk 0:03:13.2]} 33. Rf4 {[%clk
0:02:36.3]} 33... Rf5 {[%clk 0:03:12.5]} 34. h5+ {[%clk 0:02:26.9]} 34... Kxf6
{[%clk 0:03:11.4]} 35. Rd4 {[%clk 0:02:19.2]} 35... d5 {[%clk 0:03:06.4]} 36. g4
{[%clk 0:02:17.1]} 36... Rf2+ {[%clk 0:03:05.3]} 37. Kg3 {[%clk 0:02:12.2]}
37... Rxb2 {[%clk 0:03:04.4]} 38. Rf4+ {[%clk 0:02:07.9]} 38... Kg5 {[%clk
0:03:00.4]} 39. Rf7 {[%clk 0:02:01.5]} 39... Rxa2 {[%clk 0:02:59.1]} 40. Rg7+
{[%clk 0:02:00.5]} 40... Kf6 {[%clk 0:02:58.3]} 41. Rg6+ {[%clk 0:01:59.6]}
41... Kf7 {[%clk 0:02:57.9]} 42. Rxh6 {[%clk 0:01:58.7]} 42... Ra3 {[%clk
0:02:54.3]} 43. g5 {[%clk 0:01:56.3]} 43... Rxc3+ {[%clk 0:02:52.7]} 44. Kf4
{[%clk 0:01:55.1]} 44... Rc4+ {[%clk 0:02:52.1]} 45. Ke5 {[%clk 0:01:53.7]}
45... Re4+ {[%clk 0:02:51.7]} 46. Kd6 {[%clk 0:01:52.6]} 46... d4 {[%clk
0:02:48.6]} 47. Rh7+ {[%clk 0:01:51.2]} 47... Kg8 {[%clk 0:02:47.7]} 48. Rxa7
{[%clk 0:01:45.3]} 48... d3 {[%clk 0:02:43.7]} 49. Ke7 {[%clk 0:01:35.4]} 49...
d2 {[%clk 0:02:31.8]} 50. Rd7 {[%clk 0:01:34.1]} 50... Re5 {[%clk 0:02:20.8]}
51. Kf6 {[%clk 0:01:28.6]} 51... Rd5 {[%clk 0:02:19.1]} 52. Rg7+ {[%clk
0:01:22.3]} 52... Kh8 {[%clk 0:02:17]} 53. g6 {[%clk 0:01:13.7]} 53... Rf5+
{[%clk 0:02:09.4]} 0-1

[Event "Live Chess"]
[Site "Chess.com"]
[Date "2024.06.02"]
[Round "-"]
[White "NeilDruggan73"]
[Black "CheckThis4"]
[Result "0-1"]
[WhiteElo "1755"]
[BlackElo "2697"]
[TimeControl "300"]
[EndTime "17:24:05 PDT"]
[Termination "CheckThis4 won by resignation"]

1. d4 {[%clk 0:04:56.5]} 1... Nf6 {[%clk 0:04:56.2]} 2. Bg5 {[%clk 0:04:55.1]}
2... d5 {[%clk 0:04:49.3]} 3. Bxf6 {[%clk 0:04:52.3]} 3... exf6 {[%clk
0:04:47.4]} 4. e3 {[%clk 0:04:51.9]} 4... Bd6 {[%clk 0:04:43.1]} 5. g3 {[%clk
0:04:50.5]} 5... h5 {[%clk 0:04:36.4]} 6. h4 {[%clk 0:04:30.4]} 6... Bg4 {[%clk
0:04:33.6]} 7. Be2 {[%clk 0:04:24.6]} 7... f5 {[%clk 0:04:28.3]} 8. Nh3 {[%clk
0:04:21.2]} 8... Nd7 {[%clk 0:04:21.5]} 9. Nc3 {[%clk 0:04:18.6]} 9... c6 {[%clk
0:04:18.9]} 10. a3 {[%clk 0:04:15.2]} 10... Nf6 {[%clk 0:04:15.5]} 11. Qd2
{[%clk 0:04:10.5]} 11... Ne4 {[%clk 0:04:02.9]} 12. Nxe4 {[%clk 0:04:06]} 12...
fxe4 {[%clk 0:04:02.8]} 13. Bxg4 {[%clk 0:03:56.8]} 13... hxg4 {[%clk
0:04:02.7]} 14. Nf4 {[%clk 0:03:46.1]} 14... g5 {[%clk 0:03:55.8]} 15. Ng2
{[%clk 0:03:41.8]} 15... Be7 {[%clk 0:03:30.5]} 16. O-O-O {[%clk 0:03:36]} 16...
gxh4 {[%clk 0:03:28.1]} 17. gxh4 {[%clk 0:03:32.4]} 17... Bxh4 {[%clk
0:03:11.2]} 18. Qe2 {[%clk 0:03:23.6]} 18... Qg5 {[%clk 0:03:08.1]} 19. Nf4
{[%clk 0:02:58.8]} 19... O-O-O {[%clk 0:03:04.2]} 20. Rdg1 {[%clk 0:02:58.4]}
20... Rdg8 {[%clk 0:03:02.1]} 21. Rg2 {[%clk 0:02:50.3]} 21... f5 {[%clk
0:02:38.1]} 22. b3 {[%clk 0:02:41]} 22... Qf6 {[%clk 0:02:20]} 23. c4 {[%clk
0:01:46.5]} 23... Bg5 {[%clk 0:02:03.3]} 24. Rxh8 {[%clk 0:01:40.5]} 24... Rxh8
{[%clk 0:02:03.2]} 25. cxd5 {[%clk 0:01:23.8]} 25... Bxf4 {[%clk 0:01:54.6]} 26.
exf4 {[%clk 0:01:14.2]} 26... cxd5 {[%clk 0:01:42]} 27. Qc2+ {[%clk 0:00:53]}
27... Kb8 {[%clk 0:01:36]} 28. Kb2 {[%clk 0:00:51.5]} 28... Qxd4+ {[%clk
0:01:28.6]} 29. Qc3 {[%clk 0:00:50.3]} 29... Qxc3+ {[%clk 0:01:21.8]} 30. Kxc3
{[%clk 0:00:49.2]} 30... Rh3+ {[%clk 0:01:20.5]} 31. Kd4 {[%clk 0:00:47.4]}
31... Rxb3 {[%clk 0:01:10.4]} 32. Kxd5 {[%clk 0:00:46.3]} 32... Rxa3 {[%clk
0:01:07.4]} 33. Kd6 {[%clk 0:00:44.3]} 33... a5 {[%clk 0:00:57.3]} 34. Ke5
{[%clk 0:00:41.2]} 34... e3 {[%clk 0:00:48.1]} 35. fxe3 {[%clk 0:00:39.9]} 35...
Rxe3+ {[%clk 0:00:47.6]} 36. Kxf5 {[%clk 0:00:39]} 36... g3 {[%clk 0:00:47.1]}
37. Kg6 {[%clk 0:00:32.7]} 37... a4 {[%clk 0:00:42.8]} 38. f5 {[%clk 0:00:31.4]}
38... b5 {[%clk 0:00:38.8]} 39. f6 {[%clk 0:00:29.9]} 39... Rf3 {[%clk
0:00:33.9]} 40. Kg7 {[%clk 0:00:27.2]} 40... a3 {[%clk 0:00:32.6]} 41. f7 {[%clk
0:00:25.9]} 41... b4 {[%clk 0:00:31.5]} 42. f8=Q+ {[%clk 0:00:23.5]} 42... Rxf8
{[%clk 0:00:29.4]} 43. Kxf8 {[%clk 0:00:22.4]} 43... b3 {[%clk 0:00:26.8]} 44.
Rxg3 {[%clk 0:00:19.8]} 44... b2 {[%clk 0:00:26.2]} 45. Rxa3 {[%clk 0:00:13.2]}
45... b1=Q {[%clk 0:00:24.8]} 46. Re3 {[%clk 0:00:10]} 46... Qb4+ {[%clk
0:00:22.6]} 47. Kf7 {[%clk 0:00:07]} 47... Qf4+ {[%clk 0:00:21]} 48. Kg8 {[%clk
0:00:03.3]} 48... Qxe3 {[%clk 0:00:19.5]} 0-1